bitfinex/quotes_SOLUSD_20260203
["timestamp","ask_amount","ask_price","bid_price","bid_amount"]
[1770110219744,3.0065093,103.27,103.23,21.75093949]
[1770110220031,3.0065093,103.31,103.26,12.06383303]
[1770110220243,3.0065093,103.31,103.26,3.14518861]
[1770110220418,3.0065093,103.33,103.29,12.04141747]
[1770110220620,3.0065093,103.33,103.3,12.04141747]
[1770110220949,0.2,103.34,103.3,12.04141747]
[1770110221110,1e-08,103.34,103.33,12.04141747]
[1770110221310,1e-08,103.34,103.33,3.14518861]
[1770110221530,1e-08,103.34,103.33,15.18660608]
[1770110221735,3.0065093,103.41,103.34,3.14518861]
[1770110221916,21.71169777,103.41,103.36,12.04141747]
[1770110222125,3.0065093,103.38,103.33,21.719149]
[1770110222318,12.04141747,103.35,103.3,24.86672145]
[1770110222709,3.0065093,103.36,103.3,24.86672145]
[1770110222909,12.04141747,103.35,103.3,15.18660608]
[1770110223133,3.0065093,103.32,103.27,24.20744364]
[1770110223332,15.04792677,103.32,103.27,9.6829256]
[1770110223519,3.0065093,103.32,103.28,12.04141747]
[1770110223718,3.0065093,103.32,103.28,21.7230161]
[1770110223917,24.72659876,103.32,103.28,9.68159863]
[1770110224118,3.0065093,103.32,103.28,21.7230161]
[1770110224309,3.0065093,103.32,103.28,45.92905792]
[1770110224634,3.0065093,103.32,103.28,9.68159863]
[1770110224934,24.72521899,103.34,103.28,33.88764045]
[1770110225232,15.04792677,103.36,103.31,12.04141747]
[1770110225555,3.0065093,103.38,103.33,12.04141747]
[1770110225840,12.67976243,103.38,103.33,21.71823051]
[1770110226018,24.7211799,103.38,103.33,21.71823051]
[1770110226634,24.7211799,103.38,103.33,9.67681304]
[1770110226831,24.7211799,103.38,103.33,21.71823051]
[1770110227719,3.0065093,103.37,103.33,9.67681304]
[1770110227918,3.0065093,103.36,103.33,9.67681304]
[1770110228820,7.71703872,103.37,103.33,9.67681304]
[1770110229117,7.71703872,103.38,103.33,12.82200165]
[1770110229318,3.0065093,103.37,103.33,33.87114188]
[1770110229617,12.67889004,103.39,103.34,7.71703872]
[1770110229838,20.39580184,103.39,103.35,9.67585873]
[1770110230049,3.0065093,103.37,103.27,1.05812851]
[1770110230343,7.71703872,103.28,103.22,3.14518861]
[1770110230516,7.71703872,103.28,103.23,3.14518861]
[1770110230716,0.44118126,103.31,103.24,10.86222733]
[1770110230940,4.27527085,103.32,103.25,3.14518861]
[1770110231122,7.71703872,103.3,103.25,3.14518861]
[1770110231324,0.43672311,103.31,103.25,10.86222733]
[1770110231836,17.39700331,103.31,103.26,3.14518861]
[1770110232016,7.71703872,103.3,103.26,3.14518861]
[1770110232212,17.39700331,103.31,103.26,3.14518861]
[1770110232440,17.82836399,103.32,103.26,3.14518861]
[1770110232640,17.39482206,103.33,103.28,3.14518861]
[1770110232818,0.43231617,103.34,103.29,3.14518861]
[1770110232819,17.39417848,103.34,103.29,3.14518861]
[1770110233026,26.9,103.36,103.32,3.14518861]
[1770110233224,34.61703872,103.36,103.32,3.14518861]
[1770110233629,7.71703872,103.35,103.31,3.14518861]
[1770110233954,17.39354489,103.35,103.31,3.14518861]
[1770110234235,7.71703872,103.34,103.31,3.14518861]
[1770110234436,17.39196132,103.36,103.32,3.14518861]
[1770110234631,7.71703872,103.34,103.3,12.82557431]
[1770110234941,7.71703872,103.35,103.31,3.14518861]
[1770110235233,7.71703872,103.35,103.31,12.82476679]
[1770110235439,9.67398664,103.37,103.33,3.14518861]
[1770110235627,17.39102536,103.37,103.33,3.14518861]
[1770110236341,7.71703872,103.35,103.3,7.71703872]
[1770110236546,7.71703872,103.35,103.3,17.39694779]
[1770110236727,7.71703872,103.35,103.29,17.3979175]
[1770110236930,7.71703872,103.35,103.29,7.71703872]
[1770110237247,7.71703872,103.35,103.25,104.37957559]
[1770110237248,3.0065093,103.34,103.26,24.20914964]
[1770110237449,7.71703872,103.33,103.28,7.71703872]
[1770110237651,10.72354802,103.34,103.28,7.71703872]
[1770110237850,3.2065093,103.42,103.33,17.39459784]
[1770110238043,7.71703872,103.4,103.35,7.71703872]
[1770110238348,7.71703872,103.38,103.33,10.86222733]
[1770110238541,7.71703872,103.38,103.33,12.82241847]
[1770110238741,7.71703872,103.37,103.33,3.14518861]
[1770110239342,10.72354802,103.38,103.33,12.82264845]
[1770110239541,3.0065093,103.38,103.33,20.53968717]
[1770110239734,10.72354802,103.38,103.33,20.53968717]
[1770110240443,20.39747974,103.38,103.33,12.82264845]
[1770110240829,20.39747974,103.38,103.33,20.53968717]
[1770110241649,9.67393172,103.38,103.34,2.92441106]
[1770110242050,33.85300239,103.39,103.34,12.60086854]
[1770110242252,41.57004111,103.39,103.34,12.60086854]
[1770110242554,7.71703872,103.38,103.34,12.60086854]
[1770110243264,7.71703872,103.37,103.33,9.67728281]
[1770110243553,7.71703872,103.37,103.33,12.60169387]
[1770110243948,7.71703872,103.35,103.31,2.92441106]
[1770110244138,17.3943217,103.34,103.3,9.6802306]
[1770110244343,7.71703872,103.33,103.3,9.6802306]
[1770110244549,7.71703872,103.33,103.29,2.92441106]
[1770110244732,7.71703872,103.32,103.29,12.60584818]
[1770110245047,7.71703872,103.33,103.29,12.60584818]
[1770110245255,7.71703872,103.32,103.29,12.60584818]
[1770110245963,7.71703872,103.32,103.29,9.68143712]
[1770110246332,7.71703872,103.32,103.29,12.60584818]
[1770110246533,7.71703872,103.31,103.27,2.92441106]
[1770110246833,7.71703872,103.31,103.26,9.68353958]
[1770110246834,7.71703872,103.29,103.26,9.68353958]
[1770110247034,2.95410201,103.31,103.26,9.68353958]
[1770110247255,7.71703872,103.29,103.26,9.68353958]
[1770110247845,7.71703872,103.29,103.25,12.60918152]
[1770110248057,7.71703872,103.28,103.25,2.92441106]
[1770110248639,36.83647308,103.3,103.23,12.61097926]
[1770110248940,7.71703872,103.26,103.22,9.68767017]
[1770110249140,2.95410201,103.28,103.23,9.6870969]
[1770110249341,36.83647308,103.3,103.24,2.92441106]
[1770110249540,7.71703872,103.29,103.24,2.92441106]
[1770110249953,7.71703872,103.28,103.24,12.61010088]
[1770110250354,17.40032883,103.28,103.24,12.61010088]
[1770110250852,9.68329011,103.28,103.24,12.61010088]
[1770110251060,41.60338065,103.29,103.24,12.61010088]
[1770110251259,17.39900517,103.29,103.24,12.61010088]
[1770110251633,9.68083173,103.3,103.26,2.92441106]
[1770110251959,17.39527166,103.33,103.28,10.64144978]
[1770110252170,7.71703872,103.32,103.28,2.92441106]
[1770110252465,7.71703872,103.3,103.27,9.68285058]
[1770110252749,7.71703872,103.3,103.26,12.60853396]
[1770110253661,7.71703872,103.31,103.27,9.68310501]
[1770110254765,17.39583025,103.32,103.27,12.60751607]
[1770110255060,9.67822921,103.33,103.29,2.92441106]
[1770110255244,17.39386638,103.34,103.29,10.64144978]
[1770110255438,7.71703872,103.33,103.29,2.92441106]
[1770110255838,17.39386638,103.34,103.29,10.64144978]
[1770110256241,20.34726285,103.35,103.29,10.64144978]
[1770110256549,9.67612212,103.35,103.31,20.3204755]
[1770110257850,17.39316084,103.35,103.31,2.92441106]
[1770110258267,17.3924467,103.36,103.32,2.92441106]
[1770110258965,20.34551887,103.37,103.32,12.60257398]
[1770110259141,7.71703872,103.35,103.3,2.92441106]
[1770110259337,7.71703872,103.35,103.3,7.71703872]
[1770110259655,7.71703872,103.35,103.31,12.60358619]
[1770110260062,7.71703872,103.34,103.3,12.6048542]
[1770110260264,7.71703872,103.35,103.29,34.84332645]
[1770110260453,7.71703872,103.35,103.3,9.6799495]
[1770110260659,7.71703872,103.35,103.31,2.92441106]
[1770110260956,17.39198029,103.36,103.32,2.92441106]
[1770110261754,20.3460823,103.36,103.31,9.67952298]
[1770110262062,20.3460823,103.36,103.31,12.60393404]
[1770110262260,17.39150802,103.37,103.32,10.64144978]
[1770110262460,9.6744693,103.37,103.33,2.92441106]
[1770110262663,17.39150802,103.37,103.33,2.92441106]
[1770110262960,7.71703872,103.36,103.33,2.92441106]
[1770110263145,7.71703872,103.36,103.33,9.67762519]
[1770110263349,7.71703872,103.36,103.32,12.60260895]
[1770110265770,17.39251195,103.36,103.32,12.60260895]
[1770110266267,17.39251195,103.36,103.31,9.67920258]
[1770110266268,7.71703872,103.35,103.31,9.67920258]
[1770110266441,41.57981845,103.36,103.31,20.32065236]
[1770110266648,7.71703872,103.35,103.31,12.60361364]
[1770110267043,7.71703872,103.34,103.3,12.60449604]
[1770110267248,7.71703872,103.32,103.29,2.92441106]
[1770110267470,7.71703872,103.33,103.29,12.60517034]
[1770110268457,17.39500587,103.33,103.29,12.60517034]
[1770110269363,6.75003042,103.33,103.29,9.68075928]
[1770110269551,2.95410201,103.38,103.29,44.43991579]
[1770110269755,10.67114073,103.33,103.29,12.51917875]
[1770110269976,10.67114073,103.33,103.29,9.68075928]
[1770110270561,4.27527085,103.38,103.28,2.6816532]
[1770110270562,20.08034168,103.32,103.28,9.68232379]
[1770110270764,2.68463475,103.32,103.28,9.68232379]
[1770110270957,10.40167347,103.32,103.28,9.68232379]
[1770110272076,7.71703872,103.33,103.28,44.38118567]
[1770110272381,7.71703872,103.33,103.29,7.71703872]
[1770110272382,2.83511926,103.33,103.29,7.71703872]
[1770110273482,2.83511926,103.33,103.3,9.68054211]
[1770110273680,36.70146113,103.35,103.3,17.39758083]
[1770110273885,2.83511926,103.35,103.31,7.71703872]
[1770110274187,20.22641694,103.37,103.32,10.46876048]
[1770110274679,44.41138356,103.37,103.32,10.46876048]
[1770110275264,2.83511926,103.35,103.3,44.34018497]
[1770110275476,12.51158254,103.35,103.3,44.34018497]
[1770110275879,20.22862126,103.35,103.3,44.34018497]
[1770110276080,12.51158254,103.35,103.31,7.71703872]
[1770110276468,2.83511926,103.35,103.31,7.71703872]
[1770110276868,12.51113182,103.35,103.31,7.71703872]
[1770110277070,12.51113182,103.35,103.3,44.34018497]
[1770110278392,12.51113182,103.35,103.31,17.39573275]
[1770110278696,17.39305128,103.35,103.31,9.67869403]
[1770110278865,9.17601256,103.35,103.31,9.67869403]
[1770110279066,12.01113182,103.35,103.31,9.67869403]
[1770110279987,2.83511926,103.34,103.31,9.67959942]
[1770110280667,2.83511926,103.33,103.29,9.68109412]
[1770110280866,17.39386932,103.34,103.27,10.39792851]
[1770110280867,2.83511926,103.31,103.27,10.39792851]
[1770110281079,2.83511926,103.3,103.27,9.68285339]
[1770110281282,10.55215798,103.29,103.24,10.39792851]
[1770110281596,10.55215798,103.28,103.25,9.68523002]
[1770110281800,2.83511926,103.28,103.24,17.40312778]
[1770110282097,2.83511926,103.28,103.24,20.07435825]
[1770110282599,10.56315882,103.28,103.24,12.35731953]
[1770110282765,2.83511926,103.28,103.24,12.35731953]
[1770110282971,2.83511926,103.28,103.24,20.08535909]
[1770110283170,20.24438371,103.3,103.25,7.72803956]
[1770110283396,2.83511926,103.29,103.25,7.72803956]
[1770110283597,10.56315882,103.29,103.24,44.30077946]
[1770110284067,2.83511926,103.29,103.24,44.30077946]
[1770110284996,24.19932927,103.31,103.26,10.37095266]
[1770110284997,20.24313298,103.31,103.26,10.37095266]
[1770110285170,2.83511926,103.31,103.27,7.72803956]
[1770110285371,12.51424294,103.32,103.27,10.37095266]
[1770110285599,2.83511926,103.32,103.28,2.6429131]
[1770110285893,2.83511926,103.32,103.27,10.36172954]
[1770110286098,2.83511926,103.32,103.28,7.72803956]
[1770110286790,2.83511926,103.32,103.29,9.68147933]
[1770110288705,2.83511926,103.32,103.29,17.40951889]
[1770110289099,2.83511926,103.32,103.29,9.68147933]
[1770110289575,2.83511926,103.32,103.29,17.40951889]
[1770110289983,2.83511926,103.31,103.28,9.68211685]
[1770110290181,2.83511926,103.37,103.31,2.59784475]
[1770110290492,2.83511926,103.34,103.3,7.72803956]
[1770110290685,2.83511926,103.34,103.29,44.2110406]
[1770110290880,2.83511926,103.32,103.29,9.68145797]
[1770110291278,10.56315882,103.32,103.28,9.68230331]
[1770110291592,2.83511926,103.34,103.3,7.72803956]
[1770110291792,2.83511926,103.33,103.28,36.47748441]
[1770110292095,2.83511926,103.31,103.27,9.68270711]
[1770110292297,10.56315882,103.31,103.27,9.68270711]
[1770110292497,2.83511926,103.31,103.28,9.68221361]
[1770110293378,2.83511926,103.31,103.27,17.41139387]
[1770110293578,10.56315882,103.3,103.26,9.68388568]
[1770110294186,10.56315882,103.29,103.25,9.68455526]
[1770110294783,2.83511926,103.29,103.25,9.68455526]
[1770110294986,10.56315882,103.29,103.25,9.68455526]
[1770110295490,2.83511926,103.29,103.26,9.68419941]
[1770110295792,10.56315882,103.29,103.26,9.68419941]
[1770110295995,2.83511926,103.27,103.24,9.68567264]
[1770110296296,7.72803956,103.28,103.24,9.68567264]
[1770110296496,10.56315882,103.28,103.24,9.68567264]
[1770110297497,10.56315882,103.27,103.23,9.68664434]
[1770110298001,2.83511926,103.29,103.24,2.53093734]
[1770110298300,2.83511926,103.28,103.23,41.63245005]
[1770110298507,10.56315882,103.27,103.23,33.90441049]
[1770110298679,7.72803956,103.32,103.23,33.90441049]
[1770110298680,10.56315882,103.26,103.23,9.68664434]
[1770110299009,10.56315882,103.26,103.22,9.68760947]
[1770110299203,2.83511926,103.26,103.22,17.41564903]
[1770110299886,10.56315882,103.26,103.22,9.68760947]
[1770110300219,10.43524017,103.26,103.22,36.42287641]
[1770110300505,2.70720061,103.26,103.22,44.15091597]
[1770110300798,2.70720061,103.26,103.22,33.90772185]
[1770110301000,2.70720061,103.26,103.22,41.63576141]
[1770110301802,2.70720061,103.26,103.22,33.90772185]
[1770110302007,20.11955988,103.26,103.22,9.68760947]
[1770110302183,10.43524017,103.26,103.22,9.68760947]
[1770110302383,2.70720061,103.26,103.22,41.63576141]
[1770110302986,2.70720061,103.26,103.22,33.90772185]
[1770110303300,2.70720061,103.26,103.22,41.63576141]
[1770110303500,20.12002397,103.26,103.22,9.68760947]
[1770110303701,2.74512234,103.31,103.22,16.56288032]
[1770110303915,2.74512234,103.3,103.25,7.72803956]
[1770110304086,2.74512234,103.3,103.26,7.72803956]
[1770110304287,2.74512234,103.3,103.25,7.72803956]
[1770110305208,2.74512234,103.3,103.26,9.68429207]
[1770110305708,2.74512234,103.27,103.25,9.68472378]
[1770110306088,2.74512234,103.27,103.24,9.68569243]
[1770110306825,2.74512234,103.27,103.23,31.94527977]
[1770110306826,2.74512234,103.25,103.22,9.68753002]
[1770110307797,2.74512234,103.26,103.22,41.63568196]
[1770110309110,2.74512234,103.31,103.25,7.72803956]
[1770110309417,48.55849821,103.39,103.28,9.68241673]
[1770110309418,2.74512234,103.33,103.28,9.68241673]
[1770110309611,2.74512234,103.33,103.29,7.72803956]
[1770110309815,2.74512234,103.33,103.28,41.61649811]
[1770110309816,2.74512234,103.32,103.28,41.61649811]
[1770110309992,10.4731619,103.31,103.27,9.68308975]
[1770110310316,2.74512234,103.3,103.27,9.68308975]
[1770110311313,2.74512234,103.29,103.26,9.68382906]
[1770110312209,2.74512234,103.29,103.26,17.41186862]
[1770110312513,2.74512234,103.32,103.28,7.72803956]
[1770110313213,20.15027606,103.34,103.29,7.72803956]
[1770110313415,10.4731619,103.31,103.26,7.72803956]
[1770110313619,2.74512234,103.27,103.22,24.21824913]
[1770110313808,2.74512234,103.25,103.22,9.687589]
[1770110314112,2.74512234,103.25,103.23,9.6870118]
[1770110314499,2.74512234,103.25,103.22,9.68756882]
[1770110315217,2.74512234,103.25,103.22,17.41560838]
[1770110315516,2.74512234,103.26,103.23,7.72803956]
[1770110315913,39.32801381,103.28,103.24,7.72803956]
[1770110316296,2.74512234,103.27,103.24,7.72803956]
[1770110316501,2.74512234,103.27,103.23,7.72803956]
[1770110317104,39.32677666,103.29,103.25,17.41310903]
[1770110317315,12.42677666,103.29,103.25,17.41310903]
[1770110317811,2.74512234,103.28,103.25,17.41310903]
[1770110318398,2.74512234,103.29,103.26,7.72803956]
[1770110318615,2.74512234,103.29,103.25,41.62618409]
[1770110319406,2.74512234,103.29,103.26,7.72803956]
[1770110319922,2.74512234,103.29,103.25,7.72803956]
[1770110320420,2.74512234,103.27,103.2,17.41796204]
[1770110320730,2.74512234,103.26,103.22,7.72803956]
[1770110320925,29.64512234,103.28,103.24,7.72803956]
[1770110321235,2.74512234,103.27,103.2,33.91472868]
[1770110321545,2.74512234,103.27,103.22,17.41570766]
[1770110321546,2.74512234,103.25,103.22,17.41570766]
[1770110321716,2.74512234,103.24,103.21,9.68855066]
[1770110322017,2.74512234,103.25,103.21,17.41649384]
[1770110322225,2.74512234,103.24,103.21,9.68845428]
[1770110322423,2.74512234,103.24,103.21,17.41649384]
[1770110323135,2.74512234,103.24,103.22,9.68804039]
[1770110323427,2.74512234,103.25,103.22,17.41607995]
[1770110323622,2.74512234,103.25,103.22,9.68804039]
[1770110324732,2.74512234,103.25,103.22,7.72803956]
[1770110324906,2.74512234,103.25,103.21,7.72803956]
[1770110325104,2.74512234,103.25,103.22,7.72803956]
[1770110325299,12.43044567,103.25,103.22,7.72803956]
[1770110325526,2.74512234,103.25,103.22,7.72803956]
[1770110326107,12.43047111,103.25,103.21,7.72803956]
[1770110326307,2.74512234,103.24,103.21,7.72803956]
[1770110326930,2.74512234,103.24,103.21,17.416391]
[1770110328259,2.74512234,103.21,103.19,0.1]
[1770110328556,37.3731619,103.22,103.19,0.1]
[1770110328921,47.06130743,103.22,103.19,0.1]
[1770110329352,2.74512234,103.21,103.19,0.1]
[1770110331654,2.74512233,103.19,103.16,17.42162759]
[1770110332252,20.16281816,103.21,103.17,9.69211554]
[1770110332441,2.74512233,103.21,103.18,7.72803956]
[1770110332629,2.74512233,103.21,103.17,17.4201551]
[1770110332827,12.43413978,103.21,103.17,9.69211554]
[1770110333044,12.43413978,103.21,103.17,17.4201551]
[1770110333355,20.16217934,103.21,103.17,9.69211554]
[1770110334436,12.43413978,103.21,103.17,7.72803956]
[1770110334653,20.16217934,103.21,103.17,7.72803956]
[1770110334855,2.74512233,103.2,103.13,9.69649956]
[1770110335045,9.68901745,103.21,103.13,17.42453912]
[1770110335046,10.47316189,103.19,103.13,17.42453912]
[1770110335346,2.74512233,103.18,103.14,7.72803956]
[1770110335550,26.9,103.19,103.16,7.72803956]
[1770110336435,29.64512233,103.19,103.16,17.42125733]
[1770110336730,2.74512233,103.19,103.16,17.42125733]
[1770110337132,2.74512233,103.19,103.16,9.69321777]
[1770110337448,2.74512233,103.19,103.16,17.42125733]
[1770110338657,12.43511685,103.2,103.16,17.42125733]
[1770110338825,9.68999452,103.2,103.16,9.69321777]
[1770110339028,2.74512233,103.19,103.15,17.42248869]
[1770110339231,2.74512233,103.19,103.16,17.42150538]
[1770110339453,2.74512233,103.19,103.16,9.69346582]
[1770110339855,2.74512233,103.19,103.16,17.42150538]
[1770110340357,2.74512233,103.19,103.15,17.42235074]
[1770110340556,12.43619511,103.19,103.15,17.42235074]
[1770110340950,39.35556297,103.2,103.16,7.72803956]
[1770110341248,2.74512233,103.19,103.15,17.42235074]
[1770110341452,2.74512233,103.16,103.13,9.69608604]
[1770110342053,10.47316189,103.15,103.12,9.6973694]
[1770110342258,2.74512233,103.15,103.12,9.6973694]
[1770110342665,20.18925065,103.15,103.11,9.79768558]
[1770110343042,2.74512233,103.14,103.11,0.1]
[1770110343247,17.44412832,103.15,103.11,0.1]
[1770110343471,12.43921119,103.16,103.12,17.44623068]
[1770110343763,2.74512233,103.15,103.12,17.44623068]
[1770110344538,29.66512233,103.17,103.13,7.74885622]
[1770110344845,29.66512233,103.17,103.14,17.44424193]
[1770110345263,2.74512233,103.17,103.15,7.74885622]
[1770110345466,2.74512233,103.18,103.16,7.74885622]
[1770110345659,26.92,103.19,103.16,7.74885622]
[1770110345977,29.66512233,103.19,103.16,7.74885622]
[1770110346966,2.74512233,103.21,103.18,7.74885622]
[1770110347171,2.74512233,103.23,103.2,7.74885622]
[1770110348871,2.74512233,103.23,103.2,17.43799812]
[1770110349459,2.74512233,103.23,103.21,7.74885622]
[1770110349668,2.74512233,103.21,103.18,9.69123387]
[1770110351079,2.74512233,103.21,103.17,9.6923231]
[1770110351262,2.74512233,103.21,103.18,7.74885622]
[1770110351658,2.74512233,103.23,103.2,7.74885622]
[1770110352277,2.74512233,103.25,103.22,7.74885622]
[1770110352952,2.74512233,103.25,103.22,17.43646817]
[1770110355777,2.74512233,103.25,103.22,33.90772433]
[1770110355979,2.74512233,103.26,103.24,7.74885622]
[1770110356685,2.74512233,103.26,103.22,33.90772433]
[1770110356686,2.74512233,103.29,103.25,7.74885622]
[1770110356862,2.74512233,103.29,103.26,7.74885622]
[1770110357062,0.2,103.32,103.29,9.68147933]
[1770110357373,0.2,103.32,103.29,17.43033555]
[1770110357786,17.627535,103.32,103.26,7.74885622]
[1770110357987,41.82420553,103.32,103.27,9.68292128]
[1770110358188,7.74885622,103.31,103.27,9.68292128]
[1770110358775,7.74885622,103.31,103.27,17.43174545]
[1770110358983,2.53057478,103.31,103.27,9.68288923]
[1770110359183,2.53057478,103.3,103.27,17.43174545]
[1770110359489,0.2,103.32,103.29,7.74885622]
[1770110359689,1e-08,103.32,103.3,7.74885622]
[1770110359987,1e-08,103.32,103.29,2.37621399]
[1770110359988,1e-08,103.32,103.31,7.74885622]
[1770110360185,1e-08,103.32,103.3,7.74885622]
[1770110360487,1e-08,103.32,103.31,7.74885622]
[1770110360686,2.53057478,103.34,103.3,7.74885622]
[1770110360870,2.54489313,103.33,103.3,7.74885622]
[1770110361385,2.54489313,103.33,103.3,9.68036895]
[1770110361593,2.54489313,103.33,103.3,17.42922517]
[1770110363391,2.54489313,103.32,103.28,7.74885622]
[1770110363894,2.54489313,103.32,103.28,9.68191413]
[1770110364190,2.54489313,103.31,103.28,9.68191413]
[1770110364571,2.54489313,103.31,103.28,9.68185083]
[1770110366071,2.54489313,103.3,103.26,9.68349909]
[1770110366266,2.54489313,103.3,103.27,9.6832167]
[1770110366872,2.54489313,103.3,103.27,17.43207292]
[1770110367091,2.54489313,103.3,103.27,9.6832167]
[1770110367693,2.54489313,103.29,103.25,7.74885622]
[1770110367995,2.54489313,103.28,103.24,9.68566546]
[1770110368512,2.54489313,103.26,103.23,9.68699147]
[1770110368682,10.29374935,103.26,103.22,9.68761885]
[1770110369000,2.54489313,103.25,103.22,9.68761885]
[1770110369292,2.54489313,103.25,103.22,17.43647507]
[1770110370182,2.54489313,103.25,103.22,9.68761885]
[1770110370784,12.23030937,103.25,103.21,17.43737804]
[1770110371298,12.23030937,103.25,103.22,9.68803709]
[1770110371797,2.54489313,103.25,103.22,9.68803709]
[1770110372183,2.54489313,103.25,103.21,31.97099588]
[1770110372184,12.23025544,103.25,103.21,17.43739582]
[1770110372486,2.54489313,103.24,103.21,9.6888118]
[1770110372803,2.54489313,103.24,103.21,17.43766802]
[1770110372999,2.54489313,103.24,103.21,41.66012708]
[1770110373392,12.22988301,103.26,103.21,43.95410024]
[1770110373600,2.54489313,103.25,103.21,43.95410024]
[1770110373904,2.54489313,103.25,103.21,41.66012708]
[1770110374114,10.29374935,103.24,103.21,9.6888118]
[1770110374313,2.54489313,103.24,103.21,9.6888118]
[1770110375307,2.54489313,103.24,103.21,17.43766802]
[1770110375677,2.54489313,103.24,103.21,41.66012708]
[1770110375881,2.54489313,103.24,103.21,33.91127086]
[1770110376097,2.54489313,103.24,103.21,41.66012708]
[1770110376302,2.54489313,103.24,103.22,7.74885622]
[1770110376501,12.22960791,103.26,103.22,7.74885622]
[1770110376685,2.54489313,103.25,103.22,7.74885622]
[1770110378196,24.20654936,103.28,103.23,9.68710646]
[1770110378403,2.54489313,103.3,103.27,7.74885622]
[1770110378789,2.54489313,103.3,103.23,146.05058051]
[1770110378790,2.54489313,103.3,103.26,7.74885622]
[1770110378991,2.54489313,103.28,103.24,7.74885622]
[1770110380202,2.54489313,103.28,103.25,9.68523002]
[1770110380910,2.54489313,103.28,103.25,17.43408624]
[1770110381312,2.54489313,103.3,103.26,7.74885622]
[1770110382088,2.54489313,103.3,103.27,7.74885622]
[1770110382305,2.54489313,103.3,103.27,9.68335431]
[1770110383398,2.54489313,103.3,103.26,9.68408425]
[1770110383399,2.54489313,103.29,103.26,9.68408425]
[1770110383596,2.54489313,103.28,103.25,9.68485042]
[1770110387515,2.54489313,103.28,103.25,17.43370664]
[1770110387910,2.54489313,103.28,103.25,9.68485042]
[1770110390133,7.74885622,103.3,103.25,9.68485042]
[1770110390541,7.74885622,103.3,103.22,2.45993021]
[1770110390745,7.74885622,103.26,103.23,9.686647]
[1770110391030,7.74885622,103.25,103.21,9.68857506]
[1770110391410,5.36086188,103.29,103.21,9.68857506]
[1770110391609,7.74885622,103.25,103.21,9.68857506]
[1770110392031,7.74885622,103.25,103.21,12.14320971]
[1770110392231,10.02425388,103.25,103.21,12.14320971]
[1770110392440,19.70961471,103.25,103.21,12.14320971]
[1770110392935,10.02425388,103.26,103.22,2.45463465]
[1770110393435,2.27539766,103.25,103.22,2.45463465]
[1770110394531,10.02425388,103.25,103.22,2.45463465]
[1770110394837,10.02425388,103.25,103.22,9.68769257]
[1770110395049,19.70951778,103.25,103.22,9.68769257]
[1770110395919,10.02425388,103.25,103.22,9.68769257]
[1770110397435,2.27539766,103.25,103.22,9.68769257]
[1770110398225,2.27539766,103.25,103.22,36.3624396]
[1770110398430,19.70794395,103.27,103.22,44.11129582]
[1770110398634,2.27539766,103.26,103.22,44.11129582]
[1770110398820,2.27539766,103.26,103.22,36.3624396]
[1770110399340,19.70794395,103.27,103.23,2.45463465]
[1770110400416,19.70794395,103.27,103.23,12.14126818]
[1770110400726,2.27539766,103.26,103.23,12.14126818]
[1770110401632,2.27539766,103.26,103.23,36.35903433]
[1770110401829,2.27539766,103.3,103.25,2.45463465]
[1770110402016,2.27539766,103.3,103.27,2.45463465]
[1770110402223,2.27539766,103.31,103.27,10.20349087]
[1770110402539,17.42802495,103.32,103.27,10.20349087]
[1770110402540,2.27539766,103.32,103.28,12.13617236]
[1770110402832,26.9,103.36,103.27,7.72293536]
[1770110402833,9.99833302,103.3,103.27,9.68297223]
[1770110403256,2.27539766,103.3,103.27,9.68297223]
[1770110403544,2.27539766,103.31,103.28,9.6823765]
[1770110403763,2.27539766,103.31,103.27,26.66235631]
[1770110404046,2.27539766,103.31,103.28,9.68226794]
[1770110404935,11.95363578,103.33,103.29,7.72293536]
[1770110405136,11.95363578,103.33,103.29,10.17757001]
[1770110405344,2.27539766,103.34,103.31,7.72293536]
[1770110405528,11.95088762,103.36,103.32,7.72293536]
[1770110405846,2.27539766,103.36,103.32,10.17757001]
[1770110406031,2.27539766,103.36,103.33,7.72293536]
[1770110406351,2.27539766,103.36,103.28,121.03006033]
[1770110406352,2.47539766,103.38,103.34,10.17757001]
[1770110406850,2.47539766,103.38,103.35,9.67585873]
[1770110407045,0.2,103.38,103.36,7.72293536]
[1770110407747,0.2,103.38,103.35,33.86550556]
[1770110407934,0.2,103.38,103.35,44.04307557]
[1770110408133,0.2,103.38,103.35,12.13049338]
[1770110408335,10.19833302,103.38,103.35,9.67585873]
[1770110408536,2.47539766,103.38,103.35,9.67585873]
[1770110409648,19.87142474,103.38,103.34,12.13095712]
[1770110409955,10.19833302,103.38,103.34,12.13095712]
[1770110410332,2.47539766,103.38,103.34,12.13095712]
[1770110410548,12.14880221,103.38,103.34,12.13095712]
[1770110411049,17.59633991,103.38,103.34,9.67632247]
[1770110411228,19.67240219,103.37,103.33,12.13192709]
[1770110411546,9.99833302,103.36,103.33,9.67729244]
[1770110412126,2.27539766,103.36,103.33,9.67729244]
[1770110413628,2.27539766,103.35,103.32,12.13290413]
[1770110413830,9.99833302,103.35,103.32,12.13290413]
[1770110414060,2.27539766,103.35,103.32,12.13290413]
[1770110414546,19.67264522,103.37,103.32,19.85583949]
[1770110414964,19.67264522,103.37,103.33,2.45463465]